[Event "*** MasterClass Titled Tuesday Blitz"]
[Site "Chess.com"]
[Date "2017.10.03"]
[Round "4"]
[White "DrVelja"]
[Black "Konavets"]
[Result "0-1"]
[WhiteElo "2508"]
[BlackElo "2789"]
[TimeControl "180+2"]
[EndTime "13:51:16 PDT"]
[Termination "Konavets won by resignation"]

1. e4 {[%clk 0:03:01.9]} 1... c5 {[%clk 0:03:01.2]} 2. Nf3 {[%clk 0:03:02.6]}
2... d6 {[%clk 0:03:02.4]} 3. d4 {[%clk 0:03:04.1]} 3... cxd4 {[%clk 0:03:04.3]}
4. Nxd4 {[%clk 0:03:05.7]} 4... Nf6 {[%clk 0:03:06.1]} 5. Nc3 {[%clk 0:03:07.3]}
5... a6 {[%clk 0:03:07.7]} 6. Bg5 {[%clk 0:03:08.9]} 6... e6 {[%clk 0:03:07.7]}
7. f4 {[%clk 0:03:09.7]} 7... Be7 {[%clk 0:03:09.2]} 8. Qf3 {[%clk 0:03:09.6]}
8... Qc7 {[%clk 0:03:10.8]} 9. O-O-O {[%clk 0:03:10]} 9... Nbd7 {[%clk
0:03:12.2]} 10. g4 {[%clk 0:03:08.3]} 10... b5 {[%clk 0:03:09.3]} 11. Bxf6
{[%clk 0:03:09.3]} 11... Bxf6 {[%clk 0:03:09.6]} 12. Ndxb5 {[%clk 0:03:02.5]}
12... axb5 {[%clk 0:03:08.4]} 13. Nxb5 {[%clk 0:03:00.4]} 13... Qb8 {[%clk
0:02:41.4]} 14. Nxd6+ {[%clk 0:02:08.5]} 14... Kf8 {[%clk 0:02:41.7]} 15. e5
{[%clk 0:01:27.9]} 15... Rxa2 {[%clk 0:02:41.6]} 16. Bb5 {[%clk 0:00:51]} 16...
Be7 {[%clk 0:01:31.6]} 17. Qc6 {[%clk 0:00:35]} 17... Bxd6 {[%clk 0:01:15.9]}
18. exd6 {[%clk 0:00:29]} 18... Qa8 {[%clk 0:00:31.4]} 19. Qxa8 {[%clk
0:00:27.4]} 19... Rxa8 {[%clk 0:00:33.3]} 20. b4 {[%clk 0:00:21.4]} 20... Rb8
{[%clk 0:00:32]} 21. c4 {[%clk 0:00:22.8]} 21... g6 {[%clk 0:00:31.7]} 22. Kc2
{[%clk 0:00:18.5]} 22... Kg7 {[%clk 0:00:32.9]} 23. Kc3 {[%clk 0:00:19.9]} 23...
Rd8 {[%clk 0:00:34.5]} 24. g5 {[%clk 0:00:16]} 24... Nb6 {[%clk 0:00:30.9]} 25.
Rd4 {[%clk 0:00:06.2]} 25... Nd5+ {[%clk 0:00:24]} 26. Kb3 {[%clk 0:00:03.5]}
26... Ne3 {[%clk 0:00:23.7]} 27. Rd3 {[%clk 0:00:02.1]} 27... Bb7 {[%clk
0:00:19.1]} 28. Re1 {[%clk 0:00:03.3]} 28... Nf5 {[%clk 0:00:19.4]} 29. c5
{[%clk 0:00:04.7]} 29... Bg2 {[%clk 0:00:08.7]} 30. Ba4 {[%clk 0:00:03.4]} 30...
Bd5+ {[%clk 0:00:08.3]} 31. Kc3 {[%clk 0:00:03.8]} 31... Ra8 {[%clk 0:00:09.5]}
32. Bb3 {[%clk 0:00:04.8]} 32... Bc6 {[%clk 0:00:07.8]} 33. Kb2 {[%clk
0:00:04.9]} 33... Rdb8 {[%clk 0:00:08.3]} 34. Ra1 {[%clk 0:00:03.4]} 34... Rxa1
{[%clk 0:00:08.7]} 35. Kxa1 {[%clk 0:00:04.8]} 35... Rxb4 {[%clk 0:00:10.6]} 36.
Kb2 {[%clk 0:00:04.6]} 36... Rd4 {[%clk 0:00:10.1]} 37. Rxd4 {[%clk 0:00:03.9]}
37... Nxd4 {[%clk 0:00:12]} 38. Bc4 {[%clk 0:00:04]} 38... Kf8 {[%clk
0:00:12.8]} 39. Kc3 {[%clk 0:00:05.5]} 39... Nf5 {[%clk 0:00:14]} 40. Kb4 {[%clk
0:00:06.2]} 40... Ke8 {[%clk 0:00:15.9]} 41. Ka5 {[%clk 0:00:07.8]} 41... Kd7
{[%clk 0:00:17.8]} 42. Kb6 {[%clk 0:00:09.1]} 42... Ne3 {[%clk 0:00:18.7]} 43.
Ba2 {[%clk 0:00:06.7]} 43... Nd5+ {[%clk 0:00:19.9]} 44. Ka7 {[%clk 0:00:08.1]}
44... Nxf4 {[%clk 0:00:21.4]} 0-1

[Event "*** MasterClass Titled Tuesday Blitz"]
[Site "Chess.com"]
[Date "2017.10.03"]
[Round "4"]
[White "Rbrrt"]
[Black "shepi13"]
[Result "1-0"]
[WhiteElo "2279"]
[BlackElo "1999"]
[TimeControl "180+2"]
[EndTime "13:51:17 PDT"]
[Termination "Rbrrt won by checkmate"]

1. e4 {[%clk 0:03:01.9]} 1... c5 {[%clk 0:02:59.5]} 2. Nf3 {[%clk 0:03:03.3]}
2... d6 {[%clk 0:03:00.7]} 3. d4 {[%clk 0:03:04.8]} 3... cxd4 {[%clk 0:03:02.3]}
4. Nxd4 {[%clk 0:03:06.7]} 4... Nf6 {[%clk 0:03:03.2]} 5. Nc3 {[%clk 0:03:08.4]}
5... a6 {[%clk 0:03:04.7]} 6. g3 {[%clk 0:03:08.9]} 6... e5 {[%clk 0:03:04]} 7.
Nde2 {[%clk 0:03:10.4]} 7... Be7 {[%clk 0:03:04.2]} 8. Bg5 {[%clk 0:03:11.7]}
8... Nbd7 {[%clk 0:03:03.1]} 9. Bg2 {[%clk 0:03:11.9]} 9... O-O {[%clk
0:03:02.7]} 10. O-O {[%clk 0:03:10.1]} 10... b5 {[%clk 0:02:59.7]} 11. a4 {[%clk
0:03:04.2]} 11... b4 {[%clk 0:02:38]} 12. Bxf6 {[%clk 0:03:04.8]} 12... Nxf6
{[%clk 0:02:32.5]} 13. Nd5 {[%clk 0:03:06.4]} 13... Nxd5 {[%clk 0:02:32.3]} 14.
Qxd5 {[%clk 0:03:05.5]} 14... Be6 {[%clk 0:02:32.6]} 15. Qd2 {[%clk 0:02:54.7]}
15... Qb6 {[%clk 0:02:21.5]} 16. Kh1 {[%clk 0:02:44.2]} 16... Rac8 {[%clk
0:02:18.3]} 17. b3 {[%clk 0:02:23.7]} 17... Rc7 {[%clk 0:02:14.1]} 18. a5 {[%clk
0:02:16.3]} 18... Qb5 {[%clk 0:02:04.5]} 19. Ra4 {[%clk 0:02:11.4]} 19... Rfc8
{[%clk 0:01:50.1]} 20. Rc1 {[%clk 0:02:05.7]} 20... Bg5 {[%clk 0:00:38.2]} 21.
f4 {[%clk 0:01:27.8]} 21... Bh6 {[%clk 0:00:37.4]} 22. h3 {[%clk 0:01:23.5]}
22... exf4 {[%clk 0:00:24.7]} 23. gxf4 {[%clk 0:01:17.8]} 23... d5 {[%clk
0:00:18.6]} 24. exd5 {[%clk 0:01:01.3]} 24... Bf5 {[%clk 0:00:19.2]} 25. Nd4
{[%clk 0:00:50.9]} 25... Qd7 {[%clk 0:00:20.8]} 26. Kh2 {[%clk 0:00:43.7]} 26...
Rc3 {[%clk 0:00:18.6]} 27. Nf3 {[%clk 0:00:31.8]} 27... Be4 {[%clk 0:00:16.8]}
28. Ne1 {[%clk 0:00:05.4]} 28... Qf5 {[%clk 0:00:15.1]} 29. Bxe4 {[%clk
0:00:05.3]} 29... Bxf4+ {[%clk 0:00:15.3]} 30. Kg1 {[%clk 0:00:06.7]} 30... Qg5+
{[%clk 0:00:12.1]} 31. Qg2 {[%clk 0:00:07.6]} 31... Bxc1 {[%clk 0:00:12.7]} 32.
Rxb4 {[%clk 0:00:06.6]} 32... Qxg2+ {[%clk 0:00:12.5]} 33. Kxg2 {[%clk
0:00:08.5]} 33... Bd2 {[%clk 0:00:13.2]} 34. Nf3 {[%clk 0:00:09.3]} 34... Be3
{[%clk 0:00:13.9]} 35. Bd3 {[%clk 0:00:10.1]} 35... g6 {[%clk 0:00:14.9]} 36.
Rc4 {[%clk 0:00:09.3]} 36... R3xc4 {[%clk 0:00:15.2]} 37. Bxc4 {[%clk
0:00:10.2]} 37... Bc5 {[%clk 0:00:15.9]} 38. Ne5 {[%clk 0:00:11.1]} 38... Bd6
{[%clk 0:00:17]} 39. Nf3 {[%clk 0:00:05]} 39... Ra8 {[%clk 0:00:16.3]} 40. Nd4
{[%clk 0:00:06]} 40... Kg7 {[%clk 0:00:16.5]} 41. Kf3 {[%clk 0:00:06.8]} 41...
Kf6 {[%clk 0:00:17.3]} 42. Ne2 {[%clk 0:00:06.3]} 42... Ke5 {[%clk 0:00:17.4]}
43. Nc3 {[%clk 0:00:07.2]} 43... Kd4 {[%clk 0:00:17.9]} 44. Ne4 {[%clk
0:00:08.1]} 44... Be5 {[%clk 0:00:17.8]} 45. c3# {[%clk 0:00:08.7]} 1-0

[Event "*** MasterClass Titled Tuesday Blitz"]
[Site "Chess.com"]
[Date "2017.10.03"]
[Round "4"]
[White "pultineviciuspaulius"]
[Black "Semetey"]
[Result "0-1"]
[WhiteElo "2420"]
[BlackElo "2439"]
[TimeControl "180+2"]
[EndTime "13:51:20 PDT"]
[Termination "Semetey won by resignation"]

1. d4 {[%clk 0:03:00.8]} 1... Nf6 {[%clk 0:03:00.4]} 2. c4 {[%clk 0:03:02.2]}
2... d6 {[%clk 0:03:01.6]} 3. Nf3 {[%clk 0:03:02.7]} 3... g6 {[%clk 0:03:02.4]}
4. Nc3 {[%clk 0:03:03.3]} 4... Bf5 {[%clk 0:03:02.9]} 5. Nh4 {[%clk 0:03:00.7]}
5... Bd7 {[%clk 0:03:03]} 6. e4 {[%clk 0:03:01.5]} 6... e5 {[%clk 0:03:04.2]} 7.
d5 {[%clk 0:03:00.6]} 7... Bg7 {[%clk 0:03:03.4]} 8. Nf3 {[%clk 0:02:59.3]} 8...
O-O {[%clk 0:03:04.2]} 9. h3 {[%clk 0:02:53.6]} 9... a5 {[%clk 0:03:04.9]} 10.
Be3 {[%clk 0:02:52.4]} 10... Na6 {[%clk 0:03:06]} 11. g4 {[%clk 0:02:51.6]}
11... Nc5 {[%clk 0:03:05.6]} 12. Nd2 {[%clk 0:02:52.7]} 12... c6 {[%clk
0:02:58.4]} 13. Be2 {[%clk 0:02:50.3]} 13... a4 {[%clk 0:02:40.7]} 14. g5 {[%clk
0:02:28.2]} 14... Ne8 {[%clk 0:02:41.1]} 15. h4 {[%clk 0:02:29.6]} 15... Qa5
{[%clk 0:02:39.2]} 16. Rb1 {[%clk 0:02:29.3]} 16... Nc7 {[%clk 0:02:34.7]} 17.
h5 {[%clk 0:02:23.8]} 17... Rfc8 {[%clk 0:02:29.7]} 18. hxg6 {[%clk 0:02:21.7]}
18... hxg6 {[%clk 0:02:27.8]} 19. Kf1 {[%clk 0:02:20.5]} 19... b5 {[%clk
0:02:24.7]} 20. a3 {[%clk 0:02:02.7]} 20... b4 {[%clk 0:01:24.1]} 21. axb4
{[%clk 0:02:01.9]} 21... Qxb4 {[%clk 0:01:25.4]} 22. Bg4 {[%clk 0:02:03]} 22...
Bxg4 {[%clk 0:01:19.5]} 23. Qxg4 {[%clk 0:02:04.8]} 23... a3 {[%clk 0:01:16.9]}
24. Na2 {[%clk 0:01:58]} 24... Qa4 {[%clk 0:01:18]} 25. b3 {[%clk 0:01:55.4]}
25... Qa6 {[%clk 0:01:15.8]} 26. Nb4 {[%clk 0:01:45.4]} 26... Qb7 {[%clk
0:01:10.4]} 27. Nxc6 {[%clk 0:01:43.1]} 27... N7a6 {[%clk 0:01:11]} 28. b4
{[%clk 0:01:24.1]} 28... a2 {[%clk 0:01:11.3]} 29. Ra1 {[%clk 0:01:11.9]} 29...
Nxb4 {[%clk 0:01:12.3]} 30. Nxb4 {[%clk 0:01:12.3]} 30... Qxb4 {[%clk
0:01:13.1]} 31. Rxa2 {[%clk 0:01:14.1]} 31... Nb3 {[%clk 0:00:54.7]} 32. Rxa8
{[%clk 0:00:52.9]} 32... Rxa8 {[%clk 0:00:49.3]} 33. Nxb3 {[%clk 0:00:36.4]}
33... Qxc4+ {[%clk 0:00:48.8]} 34. Kg2 {[%clk 0:00:37.7]} 34... Qxb3 {[%clk
0:00:49.8]} 35. Rc1 {[%clk 0:00:39]} 35... Bf8 {[%clk 0:00:47.6]} 36. Qd7 {[%clk
0:00:31.8]} 36... Qd3 {[%clk 0:00:42.5]} 37. Kf3 {[%clk 0:00:19.2]} 37... Bg7
{[%clk 0:00:10.5]} 38. Rh1 {[%clk 0:00:19.1]} 38... Bf8 {[%clk 0:00:08.6]} 39.
Qe6 {[%clk 0:00:17.3]} 39... fxe6 {[%clk 0:00:09.4]} 40. dxe6 {[%clk 0:00:17.6]}
40... d5 {[%clk 0:00:10.7]} 41. Rh4 {[%clk 0:00:13.2]} 41... dxe4+ {[%clk
0:00:11.4]} 42. Rxe4 {[%clk 0:00:15.1]} 42... Qd5 {[%clk 0:00:12.5]} 43. e7
{[%clk 0:00:16.6]} 0-1

[Event "*** MasterClass Titled Tuesday Blitz"]
[Site "Chess.com"]
[Date "2017.10.03"]
[Round "4"]
[White "Bad4life"]
[Black "Abdodi"]
[Result "1-0"]
[WhiteElo "2196"]
[BlackElo "2148"]
[TimeControl "180+2"]
[EndTime "13:51:20 PDT"]
[Termination "Bad4life won by resignation"]

1. e4 {[%clk 0:03:01.9]} 1... e5 {[%clk 0:02:50.1]} 2. Nf3 {[%clk 0:03:02.7]}
2... Nf6 {[%clk 0:02:47.9]} 3. Nxe5 {[%clk 0:03:02.7]} 3... d6 {[%clk
0:02:48.3]} 4. Nf3 {[%clk 0:03:03.2]} 4... Nxe4 {[%clk 0:02:48.8]} 5. Nc3 {[%clk
0:03:04.8]} 5... Nxc3 {[%clk 0:02:49.1]} 6. dxc3 {[%clk 0:03:06.7]} 6... Be7
{[%clk 0:02:49.5]} 7. Be3 {[%clk 0:03:07.5]} 7... O-O {[%clk 0:02:50.3]} 8. Qd2
{[%clk 0:03:08.6]} 8... a5 {[%clk 0:02:36.4]} 9. h4 {[%clk 0:03:04]} 9... a4
{[%clk 0:02:35.6]} 10. a3 {[%clk 0:03:01.4]} 10... Bg4 {[%clk 0:02:21.7]} 11.
Nd4 {[%clk 0:02:57.5]} 11... Nc6 {[%clk 0:02:16.1]} 12. Be2 {[%clk 0:02:47.7]}
12... Bxe2 {[%clk 0:02:10.6]} 13. Nxe2 {[%clk 0:02:46.5]} 13... Ne5 {[%clk
0:02:07.9]} 14. Qd5 {[%clk 0:02:30.2]} 14... c6 {[%clk 0:01:56.3]} 15. Qd4
{[%clk 0:02:23.4]} 15... Bf6 {[%clk 0:01:53.3]} 16. O-O-O {[%clk 0:02:19.6]}
16... d5 {[%clk 0:01:54.1]} 17. Bg5 {[%clk 0:02:16.6]} 17... Nd7 {[%clk
0:01:45.5]} 18. Qd2 {[%clk 0:02:14.4]} 18... Nc5 {[%clk 0:01:34.7]} 19. Ng3
{[%clk 0:02:14.4]} 19... b5 {[%clk 0:01:28.2]} 20. Nh5 {[%clk 0:02:11.6]} 20...
Bxg5 {[%clk 0:01:13.9]} 21. hxg5 {[%clk 0:02:11.7]} 21... Ne4 {[%clk 0:01:14.1]}
22. Qd4 {[%clk 0:02:12]} 22... Qxg5+ {[%clk 0:01:13.3]} 23. f4 {[%clk
0:02:13.2]} 23... Qg6 {[%clk 0:01:01.3]} 24. g4 {[%clk 0:02:13.6]} 24... f6
{[%clk 0:00:43.8]} 25. Kb1 {[%clk 0:02:13.7]} 25... Rad8 {[%clk 0:00:33.3]} 26.
Qa7 {[%clk 0:02:05.9]} 26... Rf7 {[%clk 0:00:30.1]} 27. Qb6 {[%clk 0:02:07.1]}
27... Rfd7 {[%clk 0:00:29.7]} 28. Qxc6 {[%clk 0:02:05.5]} 28... Nf2 {[%clk
0:00:29.2]} 29. Qe6+ {[%clk 0:01:58.8]} 29... Kf8 {[%clk 0:00:25.8]} 30. g5
{[%clk 0:01:16.9]} 30... Nxd1 {[%clk 0:00:18.6]} 31. gxf6 {[%clk 0:01:05.8]}
31... gxf6 {[%clk 0:00:19]} 32. Nxf6 {[%clk 0:00:57.8]} 32... Re7 {[%clk
0:00:16]} 33. Qb6 {[%clk 0:00:22.2]} 33... Kg7 {[%clk 0:00:09.1]} 34. Nh5+
{[%clk 0:00:20.9]} 34... Qxh5 {[%clk 0:00:09.6]} 35. Rxh5 {[%clk 0:00:21.3]}
35... Nxc3+ {[%clk 0:00:10]} 36. bxc3 {[%clk 0:00:22]} 36... Rde8 {[%clk
0:00:11]} 37. Rg5+ {[%clk 0:00:22.9]} 37... Kf7 {[%clk 0:00:11.4]} 38. Rf5+
{[%clk 0:00:24.3]} 38... Kg8 {[%clk 0:00:11.5]} 39. Qf6 {[%clk 0:00:26.2]} 39...
Rg7 {[%clk 0:00:10.9]} 40. Rg5 {[%clk 0:00:25.4]} 40... Re7 {[%clk 0:00:10.7]}
41. Qd6 {[%clk 0:00:25.7]} 41... Rxg5 {[%clk 0:00:07.9]} 42. Qd8+ {[%clk
0:00:26.6]} 42... Kf7 {[%clk 0:00:08.4]} 43. fxg5 {[%clk 0:00:27.2]} 43... Re1+
{[%clk 0:00:05.2]} 44. Kb2 {[%clk 0:00:27.8]} 44... Re5 {[%clk 0:00:06.2]} 45.
Qf6+ {[%clk 0:00:26.1]} 1-0

[Event "*** MasterClass Titled Tuesday Blitz"]
[Site "Chess.com"]
[Date "2017.10.03"]
[Round "4"]
[White "Superfelix"]
[Black "Gudmundur_Kjartansson"]
[Result "1/2-1/2"]
[WhiteElo "2288"]
[BlackElo "2324"]
[TimeControl "180+2"]
[EndTime "13:51:21 PDT"]
[Termination "Game drawn by agreement"]

1. e4 {[%clk 0:03:01.1]} 1... e6 {[%clk 0:03:00.5]} 2. d4 {[%clk 0:03:01.5]}
2... d5 {[%clk 0:03:01.6]} 3. Nd2 {[%clk 0:03:03]} 3... Be7 {[%clk 0:03:00.3]}
4. Ngf3 {[%clk 0:03:00.3]} 4... Nf6 {[%clk 0:03:00.1]} 5. Bd3 {[%clk 0:02:56.7]}
5... c5 {[%clk 0:03:00.6]} 6. dxc5 {[%clk 0:02:58]} 6... O-O {[%clk 0:03:01.2]}
7. a3 {[%clk 0:02:58.7]} 7... a5 {[%clk 0:02:58.4]} 8. Qe2 {[%clk 0:02:58.2]}
8... Nc6 {[%clk 0:02:47.8]} 9. O-O {[%clk 0:02:42.9]} 9... Bxc5 {[%clk
0:02:43.8]} 10. c3 {[%clk 0:02:34.1]} 10... e5 {[%clk 0:02:25.7]} 11. exd5
{[%clk 0:02:28.6]} 11... Nxd5 {[%clk 0:02:06.8]} 12. Ne4 {[%clk 0:02:29.2]}
12... Be7 {[%clk 0:01:58.7]} 13. Neg5 {[%clk 0:02:27.5]} 13... h6 {[%clk
0:01:55.8]} 14. c4 {[%clk 0:01:39]} 14... Nf6 {[%clk 0:01:26.8]} 15. Ne4 {[%clk
0:01:37]} 15... Bg4 {[%clk 0:01:26]} 16. Nxf6+ {[%clk 0:01:26.1]} 16... gxf6
{[%clk 0:01:10.2]} 17. Qe3 {[%clk 0:01:07.3]} 17... Bc5 {[%clk 0:00:55.9]} 18.
Qe4 {[%clk 0:00:49.2]} 18... f5 {[%clk 0:00:52.7]} 19. Qd5 {[%clk 0:00:49]}
19... Qxd5 {[%clk 0:00:41.6]} 20. cxd5 {[%clk 0:00:50.9]} 20... Bxf3 {[%clk
0:00:39.9]} 21. gxf3 {[%clk 0:00:48]} 21... Nd4 {[%clk 0:00:39.8]} 22. Kg2
{[%clk 0:00:43.7]} 22... Rfd8 {[%clk 0:00:36.9]} 23. Be3 {[%clk 0:00:35.4]}
23... Rxd5 {[%clk 0:00:34.8]} 24. Rac1 {[%clk 0:00:33.3]} 24... b6 {[%clk
0:00:31.9]} 25. Bxh6 {[%clk 0:00:28.9]} 25... Kh7 {[%clk 0:00:31.7]} 26. Be3
{[%clk 0:00:28.9]} 26... Rg8+ {[%clk 0:00:32.5]} 27. Kh1 {[%clk 0:00:28.2]}
27... Rg6 {[%clk 0:00:19.7]} 28. Bxd4 {[%clk 0:00:27.4]} 28... exd4 {[%clk
0:00:20.8]} 29. Rg1 {[%clk 0:00:28.4]} 29... Rh6 {[%clk 0:00:21.4]} 30. Rg5
{[%clk 0:00:28.2]} 30... Bd6 {[%clk 0:00:21.6]} 31. Rxf5 {[%clk 0:00:29.6]}
31... Rxh2+ {[%clk 0:00:21.9]} 32. Kg1 {[%clk 0:00:30.5]} 32... Rxf5 {[%clk
0:00:22.4]} 33. Bxf5+ {[%clk 0:00:32.4]} 33... Kg7 {[%clk 0:00:23.8]} 34. Rc6
{[%clk 0:00:32.6]} 34... Rh6 {[%clk 0:00:24.8]} 35. Kf1 {[%clk 0:00:31.1]} 35...
Bc5 {[%clk 0:00:25.8]} 36. Rxh6 {[%clk 0:00:31.3]} 36... Kxh6 {[%clk 0:00:26.4]}
37. Ke2 {[%clk 0:00:33.2]} 37... Kg5 {[%clk 0:00:27.5]} 38. Bd7 {[%clk
0:00:34.3]} 38... Kf4 {[%clk 0:00:28.2]} 39. Be8 {[%clk 0:00:34.7]} 39... f6
{[%clk 0:00:28.4]} 40. Bd7 {[%clk 0:00:35.1]} 40... d3+ {[%clk 0:00:29.4]} 41.
Kxd3 {[%clk 0:00:35.6]} 41... Kxf3 {[%clk 0:00:30.9]} 42. Kc4 {[%clk 0:00:33.1]}
42... Kxf2 {[%clk 0:00:32.1]} 43. b4 {[%clk 0:00:34.2]} 43... axb4 {[%clk
0:00:33.3]} 44. axb4 {[%clk 0:00:36.1]} 44... Be3 {[%clk 0:00:31.8]} 45. Kd3
{[%clk 0:00:36]} 45... Kf3 {[%clk 0:00:32.8]} 46. Bc6+ {[%clk 0:00:36.5]} 46...
Kf4 {[%clk 0:00:34]} 47. Ke2 {[%clk 0:00:37]} 47... Bd4 {[%clk 0:00:33.1]} 48.
b5 {[%clk 0:00:37.6]} 48... f5 {[%clk 0:00:33.2]} 49. Kf1 {[%clk 0:00:38.7]}
49... Ke3 {[%clk 0:00:33.9]} 50. Bd7 {[%clk 0:00:38.8]} 50... f4 {[%clk
0:00:35]} 51. Bc6 {[%clk 0:00:40.2]} 51... f3 {[%clk 0:00:36.3]} 52. Bd7 {[%clk
0:00:41.4]} 52... f2 {[%clk 0:00:37]} 53. Bc6 {[%clk 0:00:42.6]} 53... Kd3
{[%clk 0:00:35.4]} 54. Be8 {[%clk 0:00:43.5]} 54... Kc4 {[%clk 0:00:36.9]} 55.
Bd7 {[%clk 0:00:44.1]} 55... Kc5 {[%clk 0:00:37.6]} 1/2-1/2

[Event "*** MasterClass Titled Tuesday Blitz"]
[Site "Chess.com"]
[Date "2017.10.03"]
[Round "4"]
[White "Muracle"]
[Black "MaxLeto"]
[Result "0-1"]
[WhiteElo "2461"]
[BlackElo "2330"]
[TimeControl "180+2"]
[EndTime "13:51:27 PDT"]
[Termination "MaxLeto won by resignation"]

1. Nf3 {[%clk 0:03:01.9]} 1... d5 {[%clk 0:02:50.9]} 2. g3 {[%clk 0:02:56.1]}
2... c6 {[%clk 0:02:52.3]} 3. Bg2 {[%clk 0:02:57.4]} 3... Nf6 {[%clk 0:02:53.9]}
4. O-O {[%clk 0:02:59.1]} 4... g6 {[%clk 0:02:55.1]} 5. d3 {[%clk 0:02:57.8]}
5... Bg7 {[%clk 0:02:56.6]} 6. Nbd2 {[%clk 0:02:59.2]} 6... O-O {[%clk
0:02:58.2]} 7. e4 {[%clk 0:03:00.7]} 7... h6 {[%clk 0:02:27.4]} 8. Re1 {[%clk
0:02:59.8]} 8... Be6 {[%clk 0:02:28.6]} 9. e5 {[%clk 0:02:57.5]} 9... Ne8 {[%clk
0:02:28.5]} 10. Nf1 {[%clk 0:02:58.3]} 10... Nd7 {[%clk 0:02:25.1]} 11. h4
{[%clk 0:02:59.2]} 11... Nc7 {[%clk 0:02:20.6]} 12. Be3 {[%clk 0:02:59.4]} 12...
Nxe5 {[%clk 0:01:59.9]} 13. Nxe5 {[%clk 0:02:58.4]} 13... Bxe5 {[%clk
0:02:01.8]} 14. Bxh6 {[%clk 0:02:59.4]} 14... Bxb2 {[%clk 0:02:03.4]} 15. Rb1
{[%clk 0:02:15.4]} 15... Bc3 {[%clk 0:01:33.9]} 16. Re2 {[%clk 0:02:05.6]} 16...
Re8 {[%clk 0:01:11.9]} 17. d4 {[%clk 0:01:54.2]} 17... Nb5 {[%clk 0:01:09.2]}
18. Be3 {[%clk 0:01:54]} 18... Bg4 {[%clk 0:00:49.7]} 19. f3 {[%clk 0:01:51.2]}
19... Bd7 {[%clk 0:00:47.5]} 20. a4 {[%clk 0:01:51.4]} 20... Nd6 {[%clk
0:00:48.7]} 21. Bf4 {[%clk 0:01:38.3]} 21... b6 {[%clk 0:00:27.8]} 22. g4 {[%clk
0:01:38.2]} 22... Nc4 {[%clk 0:00:22]} 23. Ng3 {[%clk 0:01:31.6]} 23... e5
{[%clk 0:00:21.9]} 24. Bg5 {[%clk 0:01:27.4]} 24... f6 {[%clk 0:00:19.7]} 25.
Bh6 {[%clk 0:01:05.4]} 25... Bxd4+ {[%clk 0:00:20.7]} 26. Kh2 {[%clk 0:01:05.6]}
26... f5 {[%clk 0:00:19.1]} 27. Bg5 {[%clk 0:01:03.7]} 27... Qc7 {[%clk
0:00:19.3]} 28. gxf5 {[%clk 0:01:03]} 28... gxf5 {[%clk 0:00:21.2]} 29. Bh3
{[%clk 0:01:01.4]} 29... e4 {[%clk 0:00:20.8]} 30. f4 {[%clk 0:01:01.9]} 30...
Be3 {[%clk 0:00:10.9]} 31. Rxe3 {[%clk 0:00:58.4]} 31... Nxe3 {[%clk 0:00:11.5]}
32. Qh5 {[%clk 0:01:00.1]} 32... Be6 {[%clk 0:00:10.1]} 33. Rg1 {[%clk
0:00:47.2]} 33... Qf7 {[%clk 0:00:07.7]} 34. Qe2 {[%clk 0:00:43.9]} 34... d4
{[%clk 0:00:09.1]} 35. Bh6 {[%clk 0:00:29.9]} 35... Kh7 {[%clk 0:00:08.3]} 36.
Nxe4 {[%clk 0:00:26.4]} 36... Kxh6 {[%clk 0:00:04.5]} 37. Nd6 {[%clk 0:00:20.4]}
37... Qc7 {[%clk 0:00:02.8]} 38. Nxe8 {[%clk 0:00:19.1]} 38... Qxf4+ {[%clk
0:00:03.8]} 39. Kh1 {[%clk 0:00:20.3]} 39... Rxe8 {[%clk 0:00:04.6]} 40. Rg5
{[%clk 0:00:21.4]} 40... Bd5+ {[%clk 0:00:05.6]} 41. Kg1 {[%clk 0:00:21.6]}
41... Ng4 {[%clk 0:00:06.9]} 42. Rh5+ {[%clk 0:00:17.7]} 42... Kg7 {[%clk
0:00:06.8]} 43. Rg5+ {[%clk 0:00:14.1]} 43... Qxg5 {[%clk 0:00:08.1]} 44. Qxe8
{[%clk 0:00:14.6]} 44... Qc1+ {[%clk 0:00:08.9]} 45. Bf1 {[%clk 0:00:14.3]}
45... Qe3+ {[%clk 0:00:10.1]} 46. Qxe3 {[%clk 0:00:14.7]} 46... dxe3 {[%clk
0:00:12]} 47. Bd3 {[%clk 0:00:16.6]} 47... f4 {[%clk 0:00:12.9]} 48. Kf1 {[%clk
0:00:18.5]} 48... f3 {[%clk 0:00:14.4]} 0-1